[Event "23rd ETCC Women 2021"]
[Site "Catez"]
[Date "2021.11.16"]
[Round "5.35"]
[White "Simkunaite, Gabija"]
[Black "Stoeri, Laura"]
[Result "0-1"]
[ECO "B30"]
[WhiteElo "1962"]
[BlackElo "2130"]
[Annotator "NA"]
[PlyCount "96"]
[EventDate "2021.11.08"]
[EventType "team-tourn"]
[EventCountry "SLO"]
[SourceTitle "playchess.com"]
[Source "ChessBase"]
[SourceQuality "1"]
[WhiteTeam "Lithuania"]
[BlackTeam "Switzerland"]
[WhiteTeamCountry "LTU"]
[BlackTeamCountry "SUI"]
[TimeControl "40/5400+30:1800+30"]

1. e4 {[%emt 0:00:04]} c5 {[%emt 0:00:04]} 2. Nf3 {[%emt 0:00:13]} Nc6 {
[%emt 0:00:07]} 3. Bb5 {[%emt 0:00:06]} e6 {[%emt 0:01:54]} 4. Bxc6 {[%emt 0:
00:08]} bxc6 {[%emt 0:01:10]} 5. b3 {[%emt 0:00:05]} d5 {[%emt 0:07:44]} 6. e5
{[%emt 0:01:25]} Ne7 {[%emt 0:00:58]} 7. O-O {[%emt 0:01:23]} Ng6 {[%emt 0:00:
24]} 8. d3 {[%emt 0:02:08]} Be7 {[%emt 0:00:14]} 9. Nc3 {[%emt 0:01:11]} f6 {
[%emt 0:06:38]} 10. exf6 {[%emt 0:04:01]} Bxf6 {[%emt 0:00:10]} 11. Bd2 {
[%emt 0:00:09]} O-O {[%emt 0:01:37]} 12. Rb1 {[%emt 0:01:51]} e5 {[%emt 0:04:
46]} 13. h3 {[%emt 0:06:56]} Nf4 {[%emt 0:12:25]} 14. Bxf4 {[%emt 0:01:59]}
exf4 {[%emt 0:00:05]} 15. Na4 {[%emt 0:00:53]} Qd6 {[%emt 0:00:29]} 16. Qd2 {
[%emt 0:03:06]} Bf5 {[%emt 0:09:36]} 17. b4 {[%emt 0:06:18]} cxb4 {[%emt 0:04:
28]} 18. Rxb4 {[%emt 0:02:52]} d4 {[%emt 0:04:49]} 19. Nb2 {[%emt 0:07:11]} c5
{[%emt 0:08:15]} 20. Nc4 {[%emt 0:03:11]} Qc7 {[%emt 0:00:06]} 21. Rb5 {
[%emt 0:04:20]} Qc6 {[%emt 0:13:39]} 22. Qa5 {[%emt 0:02:39]} Rac8 {[%emt 0:00:
51]} 23. Rfb1 {[%emt 0:05:58]} Bxh3 {[%emt 0:02:05]} 24. Qxa7 {[%emt 0:00:58]}
Bg4 {[%emt 0:13:00]} 25. Nh2 {[%emt 0:03:29]} Be6 {[%emt 0:02:24]} 26. Na5 {
[%emt 0:10:46]} Qd5 {[%emt 0:00:20]} 27. Nb3 {[%emt 0:00:23]} Rf7 {[%emt 0:01:
20]} 28. Qa3 {[%emt 0:02:40]} Rfc7 {[%emt 0:00:17]} 29. Qc1 {[%emt 0:01:35]}
Bd7 {[%emt 0:00:50]} 30. Ra5 {[%emt 0:00:42]} Qf5 {[%emt 0:00:55]} 31. Nf3 {
[%emt 0:01:30]} Qg4 {[%emt 0:00:01]} 32. Nbd2 {[%emt 0:01:45]} Be7 {[%emt 0:02:
46]} 33. Ne4 {[%emt 0:03:48]} Bc6 {[%emt 0:00:43]} 34. Ne5 {[%emt 0:01:06]} Qf5
{[%emt 0:00:07]} 35. Nxc6 {[%emt 0:01:03]} Rxc6 {[%emt 0:00:01]} 36. Ra7 {
[%emt 0:03:13]} Bf8 {[%emt 0:01:13]} 37. Rbb7 {[%emt 0:02:38]} c4 {[%emt 0:00:
45]} 38. Qd1 {[%emt 0:06:21]} cxd3 {[%emt 0:01:05]} 39. Qxd3 {[%emt 0:00:06]}
Rxc2 {[%emt 0:00:33]} 40. Rb5 {[%emt 0:01:20]} Rc1+ {[%emt 0:00:44]} 41. Kh2 {
[%emt 0:30:07]} Qg6 {[%emt 0:10:46]} 42. Raa5 {[%emt 0:00:00]} Re1 {[%emt 0:02:
43]} 43. Qb3+ {[%emt 0:00:00]} Kh8 {[%emt 0:00:20]} 44. Ng5 {[%emt 0:00:00]}
Rcc1 {[%emt 0:01:56]} 45. g4 {[%emt 0:00:00]} fxg3+ {[%emt 0:04:54]} 46. Kxg3 {
[%emt 0:00:00]} Rc3+ {[%emt 0:03:41]} 47. Qxc3 {[%emt 0:00:00]} dxc3 {[%emt 0:
00:01]} 48. Rf5 {[%emt 0:00:00]} Re8 {[%emt 0:02:42]} 0-1

[Event "23rd ETCC Women 2021"]
[Site "Catez"]
[Date "2021.11.16"]
[Round "5.36"]
[White "De Seroux, Camille"]
[Black "Sibajeva, Marija"]
[Result "0-1"]
[ECO "B01"]
[WhiteElo "2125"]
[BlackElo "1946"]
[Annotator "NA"]
[PlyCount "84"]
[EventDate "2021.11.08"]
[EventType "team-tourn"]
[EventCountry "SLO"]
[SourceTitle "playchess.com"]
[Source "ChessBase"]
[SourceQuality "1"]
[WhiteTeam "Switzerland"]
[BlackTeam "Lithuania"]
[WhiteTeamCountry "SUI"]
[BlackTeamCountry "LTU"]
[TimeControl "40/5400+30:1800+30"]

1. e4 {[%emt 0:00:04]} d5 {[%emt 0:00:05]} 2. exd5 {[%emt 0:00:07]} Qxd5 {
[%emt 0:00:04]} 3. Nf3 {[%emt 0:00:11]} Bg4 {[%emt 0:00:27]} 4. Be2 {[%emt 0:
00:18]} Nc6 {[%emt 0:00:22]} 5. d4 {[%emt 0:00:56]} O-O-O {[%emt 0:02:55]} 6.
c4 {[%emt 0:00:32]} Qd7 {[%emt 0:07:28]} 7. d5 {[%emt 0:00:54]} Bxf3 {[%emt 0:
00:37]} 8. Bxf3 {[%emt 0:00:08]} Ne5 {[%emt 0:01:04]} 9. O-O {[%emt 0:01:15]}
Nxc4 {[%emt 0:12:30]} 10. Qd4 {[%emt 0:02:30]} Nb6 {[%emt 0:00:44]} 11. Nc3 {
[%emt 0:03:23]} Nf6 {[%emt 0:02:03]} 12. Bf4 {[%emt 0:10:25]} g5 {[%emt 0:10:
13]} 13. Bxg5 {[%emt 0:04:04]} Bg7 {[%emt 0:01:12]} 14. Rfc1 {[%emt 0:17:46]}
Rhg8 {[%emt 0:04:48]} 15. Qf4 {[%emt 0:09:41]} Kb8 {[%emt 0:02:33]} 16. a4 {
[%emt 0:03:14]} Nbxd5 {[%emt 0:04:16]} 17. Qc4 {[%emt 0:11:39]} Nxc3 {[%emt 0:
04:32]} 18. Rxc3 {[%emt 0:04:20]} Nd5 {[%emt 0:00:52]} 19. Rb3 {[%emt 0:05:38]}
c6 {[%emt 0:04:08]} 20. Bh4 {[%emt 0:04:10]} Ka8 {[%emt 0:03:20]} 21. Re1 {
[%emt 0:05:29]} Bf6 {[%emt 0:01:58]} 22. Bg3 {[%emt 0:01:02]} e6 {[%emt 0:02:
30]} 23. a5 {[%emt 0:03:52]} a6 {[%emt 0:01:07]} 24. Be2 {[%emt 0:02:08]} Be7 {
[%emt 0:05:17]} 25. f3 {[%emt 0:01:11]} Bd6 {[%emt 0:03:16]} 26. Bf2 {[%emt 0:
00:39]} Nf4 {[%emt 0:11:30]} 27. g3 {[%emt 0:03:19]} Nh3+ {[%emt 0:00:34]} 28.
Kg2 {[%emt 0:00:26]} Nxf2 {[%emt 0:00:04]} 29. Kxf2 {[%emt 0:00:07]} Qc7 {
[%emt 0:00:32]} 30. f4 {[%emt 0:01:42]} Qxa5 {[%emt 0:00:36]} 31. Kf1 {[%emt 0:
01:09]} Qd5 {[%emt 0:03:17]} 32. Qxd5 {[%emt 0:01:49]} exd5 {[%emt 0:00:06]}
33. Bd3 {[%emt 0:00:53]} c5 {[%emt 0:01:02]} 34. Bf5 {[%emt 0:01:27]} c4 {
[%emt 0:00:44]} 35. Rf3 {[%emt 0:00:20]} Rge8 {[%emt 0:01:23]} 36. Rd1 {
[%emt 0:00:47]} Bb4 {[%emt 0:01:33]} 37. g4 {[%emt 0:00:23]} d4 {[%emt 0:01:50]
} 38. g5 {[%emt 0:00:49]} d3 {[%emt 0:00:18]} 39. Bxh7 {[%emt 0:00:39]} Re2 {
[%emt 0:01:15]} 40. b3 {[%emt 0:00:31]} Rxh2 {[%emt 0:00:31]} 41. Bxd3 {
[%emt 0:01:56]} Rh1+ {[%emt 0:00:58]} 42. Ke2 {[%emt 0:00:16]} Re8+ {[%emt 0:
00:47]} 0-1

[Event "23rd ETCC Women 2021"]
[Site "Catez"]
[Date "2021.11.16"]
[Round "5.37"]
[White "Injac, Teodora"]
[Black "Goossens, Hanne"]
[Result "1-0"]
[ECO "A37"]
[WhiteElo "2387"]
[BlackElo "2126"]
[Annotator "NA"]
[PlyCount "83"]
[EventDate "2021.11.08"]
[EventType "team-tourn"]
[EventCountry "SLO"]
[SourceTitle "playchess.com"]
[Source "ChessBase"]
[SourceQuality "1"]
[WhiteTeam "Serbia"]
[BlackTeam "Belgium"]
[WhiteTeamCountry "SRB"]
[BlackTeamCountry "BEL"]
[TimeControl "40/5400+30:1800+30"]

1. Nf3 {[%emt 0:00:07]} c5 {[%emt 0:00:12]} 2. c4 {[%emt 0:01:10]} Nc6 {
[%emt 0:00:10]} 3. Nc3 {[%emt 0:00:57]} e5 {[%emt 0:00:27]} 4. g3 {[%emt 0:04:
08]} g6 {[%emt 0:00:52]} 5. Bg2 {[%emt 0:00:51]} Bg7 {[%emt 0:00:41]} 6. O-O {
[%emt 0:01:26]} d6 {[%emt 0:00:47]} 7. a3 {[%emt 0:05:11]} Be6 {[%emt 0:04:34]}
8. d3 {[%emt 0:03:29]} Nge7 {[%emt 0:01:11]} 9. Rb1 {[%emt 0:03:31]} a5 {
[%emt 0:00:22]} 10. Ng5 {[%emt 0:07:08]} Bc8 {[%emt 0:06:00]} 11. Nd5 {[%emt 0:
12:08]} O-O {[%emt 0:10:19]} 12. Nxe7+ {[%emt 0:01:19]} Qxe7 {[%emt 0:01:09]}
13. Ne4 {[%emt 0:00:56]} Be6 {[%emt 0:07:27]} 14. Nc3 {[%emt 0:01:07]} Rab8 {
[%emt 0:10:07]} 15. Bd2 {[%emt 0:02:56]} Qd7 {[%emt 0:04:42]} 16. Re1 {[%emt 0:
11:29]} f5 {[%emt 0:02:53]} 17. f4 {[%emt 0:06:23]} Kh8 {[%emt 0:12:43]} 18.
Qa4 {[%emt 0:01:16]} Nd4 {[%emt 0:06:15]} 19. Qd1 {[%emt 0:15:35]} b5 {[%emt 0:
06:38]} 20. e3 {[%emt 0:01:04]} b4 {[%emt 0:03:41]} 21. exd4 {[%emt 0:00:22]}
bxc3 {[%emt 0:00:08]} 22. Bxc3 {[%emt 0:00:29]} cxd4 {[%emt 0:04:31]} 23. Bxa5
{[%emt 0:00:06]} e4 {[%emt 0:00:28]} 24. dxe4 {[%emt 0:02:38]} fxe4 {[%emt 0:
00:48]} 25. Bxe4 {[%emt 0:00:31]} Bxc4 {[%emt 0:00:18]} 26. b3 {[%emt 0:01:14]}
d5 {[%emt 0:10:59]} 27. Bf3 {[%emt 0:05:50]} Ba6 {[%emt 0:00:14]} 28. Rc1 {
[%emt 0:00:34]} Rfc8 {[%emt 0:02:31]} 29. Rxc8+ {[%emt 0:01:26]} Qxc8 {[%emt 0:
00:16]} 30. Bb4 {[%emt 0:02:41]} Qd8 {[%emt 0:01:14]} 31. Re6 {[%emt 0:00:52]}
Bb7 {[%emt 0:01:42]} 32. Qe2 {[%emt 0:02:13]} Rc8 {[%emt 0:01:03]} 33. Re7 {
[%emt 0:00:53]} Bc6 {[%emt 0:00:06]} 34. Bc5 {[%emt 0:00:40]} Bd7 {[%emt 0:00:
47]} 35. Rxg7 {[%emt 0:03:26]} Kxg7 {[%emt 0:00:40]} 36. Bxd4+ {[%emt 0:00:01]}
Kf7 {[%emt 0:00:57]} 37. Bxd5+ {[%emt 0:00:26]} Kf8 {[%emt 0:00:19]} 38. Qe5 {
[%emt 0:00:41]} Rc1+ {[%emt 0:00:24]} 39. Kf2 {[%emt 0:00:19]} Rc2+ {[%emt 0:
00:06]} 40. Kf3 {[%emt 0:01:02]} Qc7 {[%emt 0:01:14]} 41. Qf6+ {[%emt 0:30:41]}
Ke8 {[%emt 0:30:31]} 42. Bf7+ {[%emt 0:00:08]} 1-0

[Event "23rd ETCC Women 2021"]
[Site "Catez"]
[Date "2021.11.16"]
[Round "5.38"]
[White "Vanduyfhuys, Daria"]
[Black "Velikic, Adela"]
[Result "1/2-1/2"]
[ECO "D47"]
[WhiteElo "1933"]
[BlackElo "2287"]
[Annotator "RC"]
[PlyCount "190"]
[EventDate "2021.11.08"]
[EventType "team-tourn"]
[EventCountry "SLO"]
[SourceTitle "playchess.com"]
[Source "ChessBase"]
[SourceQuality "1"]
[WhiteTeam "Belgium"]
[BlackTeam "Serbia"]
[WhiteTeamCountry "BEL"]
[BlackTeamCountry "SRB"]
[TimeControl "40/5400+30:1800+30"]

1. d4 {[%emt 0:00:03]} d5 {[%emt 0:00:05]} 2. c4 {[%emt 0:00:06]} e6 {[%emt 0:
00:04]} 3. Nf3 {[%emt 0:00:07]} c6 {[%emt 0:00:06]} 4. e3 {[%emt 0:00:20]} Nf6
{[%emt 0:00:34]} 5. Nc3 {[%emt 0:00:48]} Nbd7 {[%emt 0:00:12]} 6. Bd3 {[%emt 0:
02:19]} dxc4 {[%emt 0:00:38]} 7. Bxc4 {[%emt 0:00:05]} b5 {[%emt 0:00:52]} 8.
Bd3 {[%emt 0:02:20]} Bd6 {[%emt 0:03:59]} 9. e4 {[%emt 0:15:31]} e5 {[%emt 0:
14:42]} 10. d5 {[%emt 0:00:00]} cxd5 {[%emt 0:05:25]} 11. Nxb5 {[%emt 0:00:00]}
Bb4+ {[%emt 0:20:05]} 12. Bd2 {[%emt 0:00:00]} Bxd2+ {[%emt 0:00:40]} 13. Nxd2
{[%emt 0:00:00]} Nc5 {[%emt 0:03:43]} 14. Bc2 {[%emt 0:12:28]} Ba6 {[%emt 0:11:
00]} 15. a4 {[%emt 0:01:51]} Bxb5 {[%emt 0:07:41]} 16. axb5 {[%emt 0:00:07]}
dxe4 {[%emt 0:06:34]} 17. O-O {[%emt 0:03:17]} O-O {[%emt 0:05:57]} 18. b4 {
[%emt 0:01:36]} Nd3 {[%emt 0:02:33]} 19. Nxe4 {[%emt 0:01:13]} Nxe4 {[%emt 0:
03:40]} 20. Qxd3 {[%emt 0:02:18]} Qxd3 {[%emt 0:01:25]} 21. Bxd3 {[%emt 0:00:
07]} Nd6 {[%emt 0:01:04]} 22. Ra6 {[%emt 0:04:41]} Rfd8 {[%emt 0:00:56]} 23.
Be2 {[%emt 0:02:15]} Kf8 {[%emt 0:05:38]} 24. Rd1 {[%emt 0:05:30]} Ne4 {
[%emt 0:01:52]} 25. Rc1 {[%emt 0:11:28]} Rac8 {[%emt 0:01:32]} 26. Rac6 {
[%emt 0:00:26]} Nd6 {[%emt 0:00:57]} 27. g3 {[%emt 0:02:24]} g6 {[%emt 0:00:45]
} 28. R1c5 {[%emt 0:00:49]} Rb8 {[%emt 0:01:15]} 29. Rxe5 {[%emt 0:01:06]} Rd7
{[%emt 0:00:32]} 30. Kf1 {[%emt 0:01:57]} Re8 {[%emt 0:00:22]} 31. Rd5 {
[%emt 0:02:47]} Re6 {[%emt 0:00:19]} 32. Bg4 {[%emt 0:13:19]} f5 {[%emt 0:00:
12]} 33. Bf3 {[%emt 0:00:21]} Ke7 {[%emt 0:00:33]} 34. b6 {[%emt 0:01:24]} axb6
{[%emt 0:00:34]} 35. Rxb6 {[%emt 0:00:05]} Rc7 {[%emt 0:00:40]} 36. Rb8 {
[%emt 0:01:32]} Rc3 {[%emt 0:00:44]} 37. Kg2 {[%emt 0:00:40]} g5 {[%emt 0:00:
24]} 38. h3 {[%emt 0:00:09]} Rg6 {[%emt 0:00:39]} 39. Rc5 {[%emt 0:01:30]} Rb3
{[%emt 0:00:33]} 40. Rc7+ {[%emt 0:05:04]} Ke6 {[%emt 0:00:08]} 41. Rxh7 {
[%emt 0:33:23]} Rb2 {[%emt 0:06:00]} 42. Rc7 {[%emt 0:00:00]} Rd2 {[%emt 0:06:
49]} 43. Bc6 {[%emt 0:00:00]} g4 {[%emt 0:03:48]} 44. Bd7+ {[%emt 0:00:00]} Ke5
{[%emt 0:02:18]} 45. Rc5+ {[%emt 0:00:00]} Kd4 {[%emt 0:05:27]} 46. Bxf5 {
[%emt 0:00:00]} gxh3+ {[%emt 0:00:53]} 47. Kxh3 {[%emt 0:00:00]} Rf6 {[%emt 0:
01:14]} 48. g4 {[%emt 0:00:00]} Rxf2 {[%emt 0:06:01]} 49. Kg3 {[%emt 0:00:00]}
Rb2 {[%emt 0:00:30]} 50. Kf4 {[%emt 0:00:00]} Rxb4 {[%emt 0:00:30]} 51. Rxb4+ {
[%emt 0:00:00]} Kxc5 {[%emt 0:00:30]} 52. Rb1 {[%emt 0:00:00]} Rf8 {[%emt 0:00:
30]} 53. Re1 {[%emt 0:00:00]} Kd5 {[%emt 0:00:30]} 54. Rd1+ {[%emt 0:00:00]}
Kc5 {[%emt 0:00:30]} 55. Kg5 {[%emt 0:00:00]} Rg8+ {[%emt 0:00:30]} 56. Kf6 {
[%emt 0:00:00]} Rf8+ {[%emt 0:00:30]} 57. Ke7 {[%emt 0:00:15]} Rxf5 {[%emt 0:
00:30]} 58. gxf5 {[%emt 0:00:30]} Nxf5+ {[%emt 0:00:30]} 59. Ke6 {[%emt 0:00:
30]} Nd4+ {[%emt 0:00:30]} 60. Ke5 {[%emt 0:00:30]} Nc6+ {[%emt 0:00:30]} 61.
Ke4 {[%emt 0:00:30]} Ne7 {[%emt 0:00:30]} 62. Rc1+ {[%emt 0:00:30]} Kd6 {
[%emt 0:00:30]} 63. Ra1 {[%emt 0:00:30]} Nc6 {[%emt 0:00:30]} 64. Ra8 {[%emt 0:
00:30]} Kc5 {[%emt 0:00:30]} 65. Rc8 {[%emt 0:00:30]} Kd6 {[%emt 0:00:30]} 66.
Rh8 {[%emt 0:00:30]} Kc5 {[%emt 0:00:30]} 67. Rh5+ {[%emt 0:00:30]} Kd6 {
[%emt 0:00:30]} 68. Rd5+ {[%emt 0:00:30]} Ke6 {[%emt 0:00:30]} 69. Rd1 {
[%emt 0:00:30]} Ne7 {[%emt 0:00:30]} 70. Kf4 {[%emt 0:00:30]} Nd5+ {[%emt 0:00:
30]} 71. Kg5 {[%emt 0:00:30]} Ke5 {[%emt 0:00:30]} 72. Re1+ {[%emt 0:00:30]}
Kd4 {[%emt 0:00:30]} 73. Re8 {[%emt 0:00:30]} Nc3 {[%emt 0:00:30]} 74. Kf4 {
[%emt 0:00:30]} Nd5+ {[%emt 0:00:30]} 75. Kf3 {[%emt 0:00:30]} Nc3 {[%emt 0:00:
30]} 76. Re3 {[%emt 0:00:30]} Kc4 {[%emt 0:00:30]} 77. Re5 {[%emt 0:00:30]} Kd4
{[%emt 0:00:30]} 78. Kf4 {[%emt 0:00:30]} Nd5+ {[%emt 0:00:30]} 79. Kf5 {
[%emt 0:00:30]} Ne3+ {[%emt 0:00:30]} 80. Ke6 {[%emt 0:00:30]} Ng2 {[%emt 0:00:
30]} 81. Kd6 {[%emt 0:00:30]} Ne3 {[%emt 0:00:30]} 82. Rc5 {[%emt 0:00:30]}
Nc4+ {[%emt 0:00:30]} 83. Kc6 {[%emt 0:00:30]} Ne5+ {[%emt 0:00:30]} 84. Kb5 {
[%emt 0:00:30]} Ke4 {[%emt 0:00:30]} 85. Rc1 {[%emt 0:00:30]} Kd4 {[%emt 0:00:
30]} 86. Rd1+ {[%emt 0:00:30]} Ke4 {[%emt 0:00:30]} 87. Kc5 {[%emt 0:00:30]}
Nd3+ {[%emt 0:00:30]} 88. Kd6 {[%emt 0:00:30]} Kd4 {[%emt 0:00:30]} 89. Rb1 {
[%emt 0:00:30]} Ke4 {[%emt 0:00:30]} 90. Ra1 {[%emt 0:00:30]} Kd4 {[%emt 0:00:
30]} 91. Ra4+ {[%emt 0:00:30]} Ke3 {[%emt 0:00:30]} 92. Rh4 {[%emt 0:00:30]}
Nf4 {[%emt 0:00:30]} 93. Rh8 {[%emt 0:00:30]} Ke4 {[%emt 0:00:30]} 94. Re8+ {
[%emt 0:00:30]} Kd4 {[%emt 0:00:30]} 95. Re1 {[%emt 0:00:30]} Nd3 {[%emt 0:00:
30]} 1/2-1/2

[Event "23rd ETCC Women 2021"]
[Site "Catez"]
[Date "2021.11.16"]
[Round "5.39"]
[White "Eric, Jovana"]
[Black "Barbier, Astrid"]
[Result "1-0"]
[ECO "C54"]
[WhiteElo "2253"]
[BlackElo "1915"]
[Annotator "NA"]
[PlyCount "75"]
[EventDate "2021.11.08"]
[EventType "team-tourn"]
[EventCountry "SLO"]
[SourceTitle "playchess.com"]
[Source "ChessBase"]
[SourceQuality "1"]
[WhiteTeam "Serbia"]
[BlackTeam "Belgium"]
[WhiteTeamCountry "SRB"]
[BlackTeamCountry "BEL"]
[TimeControl "40/5400+30:1800+30"]

1. e4 {[%emt 0:00:03]} e5 {[%emt 0:00:06]} 2. Nf3 {[%emt 0:00:11]} Nc6 {
[%emt 0:00:06]} 3. Bc4 {[%emt 0:00:42]} Bc5 {[%emt 0:00:11]} 4. O-O {[%emt 0:
00:24]} Nf6 {[%emt 0:01:04]} 5. d3 {[%emt 0:00:20]} a6 {[%emt 0:01:12]} 6. c3 {
[%emt 0:01:00]} Ba7 {[%emt 0:00:27]} 7. Bb3 {[%emt 0:00:42]} d6 {[%emt 0:00:37]
} 8. Nbd2 {[%emt 0:01:04]} O-O {[%emt 0:01:15]} 9. h3 {[%emt 0:00:59]} h6 {
[%emt 0:04:07]} 10. Re1 {[%emt 0:01:50]} Re8 {[%emt 0:01:02]} 11. Nf1 {[%emt 0:
01:03]} Ne7 {[%emt 0:03:16]} 12. Ng3 {[%emt 0:02:57]} Ng6 {[%emt 0:01:07]} 13.
d4 {[%emt 0:02:38]} Qe7 {[%emt 0:08:44]} 14. Nf5 {[%emt 0:06:08]} Qf8 {[%emt 0:
01:09]} 15. Bc2 {[%emt 0:04:44]} b5 {[%emt 0:06:14]} 16. a4 {[%emt 0:03:15]}
Bb7 {[%emt 0:01:35]} 17. d5 {[%emt 0:01:18]} Ne7 {[%emt 0:07:47]} 18. N3h4 {
[%emt 0:03:03]} Nxf5 {[%emt 0:06:20]} 19. Nxf5 {[%emt 0:00:07]} Red8 {[%emt 0:
01:18]} 20. Qf3 {[%emt 0:02:00]} c6 {[%emt 0:04:03]} 21. dxc6 {[%emt 0:00:43]}
Bxc6 {[%emt 0:00:51]} 22. Nxh6+ {[%emt 0:00:16]} gxh6 {[%emt 0:07:46]} 23. Qxf6
{[%emt 0:00:15]} Kh7 {[%emt 0:00:46]} 24. Qf5+ {[%emt 0:06:51]} Kh8 {[%emt 0:
00:52]} 25. Qh5 {[%emt 0:01:27]} Kh7 {[%emt 0:03:48]} 26. Bd1 {[%emt 0:02:48]}
Bd7 {[%emt 0:02:43]} 27. Bg4 {[%emt 0:00:31]} Be6 {[%emt 0:03:15]} 28. Be3 {
[%emt 0:03:40]} Qg7 {[%emt 0:04:41]} 29. Bxa7 {[%emt 0:00:26]} Rxa7 {[%emt 0:
00:05]} 30. axb5 {[%emt 0:00:11]} a5 {[%emt 0:00:12]} 31. Re3 {[%emt 0:02:50]}
Rb8 {[%emt 0:01:25]} 32. Bf5+ {[%emt 0:02:12]} Kh8 {[%emt 0:02:40]} 33. Bxe6 {
[%emt 0:00:33]} fxe6 {[%emt 0:00:13]} 34. Rg3 {[%emt 0:00:06]} Qf8 {[%emt 0:00:
48]} 35. Rg6 {[%emt 0:00:27]} Kh7 {[%emt 0:02:04]} 36. Rxe6 {[%emt 0:00:23]}
Rf7 {[%emt 0:01:34]} 37. Rxa5 {[%emt 0:00:46]} Qg7 {[%emt 0:01:25]} 38. Rxh6+ {
[%emt 0:00:51]} 1-0

[Event "23rd ETCC Women 2021"]
[Site "Catez"]
[Date "2021.11.16"]
[Round "5.40"]
[White "Dierckens, Sarah"]
[Black "Gajcin, Marina"]
[Result "0-1"]
[ECO "B33"]
[WhiteElo "1795"]
[BlackElo "2198"]
[Annotator "NA"]
[PlyCount "108"]
[EventDate "2021.11.08"]
[EventType "team-tourn"]
[EventCountry "SLO"]
[SourceTitle "playchess.com"]
[Source "ChessBase"]
[SourceQuality "1"]
[WhiteTeam "Belgium"]
[BlackTeam "Serbia"]
[WhiteTeamCountry "BEL"]
[BlackTeamCountry "SRB"]
[TimeControl "40/5400+30:1800+30"]

1. e4 {[%emt 0:00:04]} c5 {[%emt 0:00:04]} 2. Nf3 {[%emt 0:00:06]} Nc6 {
[%emt 0:00:06]} 3. d4 {[%emt 0:00:06]} cxd4 {[%emt 0:00:05]} 4. Nxd4 {[%emt 0:
00:05]} Nf6 {[%emt 0:00:45]} 5. Nc3 {[%emt 0:00:15]} e5 {[%emt 0:00:09]} 6.
Ndb5 {[%emt 0:00:12]} d6 {[%emt 0:00:06]} 7. Bg5 {[%emt 0:00:49]} a6 {[%emt 0:
00:16]} 8. Na3 {[%emt 0:00:14]} b5 {[%emt 0:00:19]} 9. Nd5 {[%emt 0:01:32]} Be7
{[%emt 0:00:04]} 10. Bxf6 {[%emt 0:01:52]} Bxf6 {[%emt 0:00:05]} 11. c3 {
[%emt 0:00:57]} Bg5 {[%emt 0:02:06]} 12. Nc2 {[%emt 0:07:14]} O-O {[%emt 0:00:
38]} 13. Qh5 {[%emt 0:03:06]} g6 {[%emt 0:13:47]} 14. Qf3 {[%emt 0:03:50]} f5 {
[%emt 0:03:20]} 15. h4 {[%emt 0:13:16]} fxe4 {[%emt 0:02:13]} 16. Qxe4 {
[%emt 0:08:50]} Bf5 {[%emt 0:04:00]} 17. Qe2 {[%emt 0:01:16]} Bxh4 {[%emt 0:02:
37]} 18. g3 {[%emt 0:05:16]} Bg5 {[%emt 0:07:57]} 19. Bg2 {[%emt 0:00:11]} Rb8
{[%emt 0:08:29]} 20. Nce3 {[%emt 0:03:18]} Be6 {[%emt 0:34:18]} 21. Be4 {
[%emt 0:04:03]} Qd7 {[%emt 0:02:11]} 22. Qd3 {[%emt 0:05:17]} Bxe3 {[%emt 0:01:
05]} 23. Qxe3 {[%emt 0:06:50]} Ne7 {[%emt 0:00:32]} 24. O-O-O {[%emt 0:03:49]}
Nxd5 {[%emt 0:01:00]} 25. Bxd5 {[%emt 0:02:20]} Bxd5 {[%emt 0:00:55]} 26. Rxd5
{[%emt 0:00:07]} Qc7 {[%emt 0:03:46]} 27. Rhd1 {[%emt 0:04:57]} Rf6 {[%emt 0:
03:35]} 28. Qg5 {[%emt 0:03:17]} Rbf8 {[%emt 0:01:48]} 29. Qh4 {[%emt 0:02:31]}
Qb6 {[%emt 0:02:01]} 30. Qb4 {[%emt 0:02:48]} Qxf2 {[%emt 0:01:13]} 31. Rxd6 {
[%emt 0:00:49]} Qxg3 {[%emt 0:01:38]} 32. Rxf6 {[%emt 0:01:21]} Qg5+ {[%emt 0:
00:49]} 33. Kc2 {[%emt 0:00:48]} Qxf6 {[%emt 0:00:15]} 34. Rd6 {[%emt 0:00:58]}
Qf5+ {[%emt 0:00:28]} 35. Kb3 {[%emt 0:00:56]} Qf4 {[%emt 0:00:20]} 36. Rxa6 {
[%emt 0:04:51]} Qxb4+ {[%emt 0:02:53]} 37. cxb4 {[%emt 0:02:24]} Re8 {[%emt 0:
01:40]} 38. Kc3 {[%emt 0:00:42]} e4 {[%emt 0:01:05]} 39. Kd2 {[%emt 0:00:09]}
Kg7 {[%emt 0:00:35]} 40. Ra7+ {[%emt 0:02:03]} Kh6 {[%emt 0:00:07]} 41. Ke3 {
[%emt 0:30:24]} g5 {[%emt 0:14:37]} 42. Ra5 {[%emt 0:00:00]} Kh5 {[%emt 0:10:
04]} 43. Rxb5 {[%emt 0:00:00]} Kg4 {[%emt 0:00:11]} 44. a4 {[%emt 0:00:00]} h5
{[%emt 0:00:47]} 45. Rc5 {[%emt 0:00:00]} h4 {[%emt 0:00:45]} 46. Rc1 {[%emt 0:
00:00]} h3 {[%emt 0:00:11]} 47. b5 {[%emt 0:00:00]} h2 {[%emt 0:07:14]} 48. b6
{[%emt 0:00:00]} Kh3 {[%emt 0:00:33]} 49. a5 {[%emt 0:00:00]} g4 {[%emt 0:00:
15]} 50. b7 {[%emt 0:00:00]} g3 {[%emt 0:00:11]} 51. Rc8 {[%emt 0:00:00]} h1=Q
{[%emt 0:00:08]} 52. Rxe8 {[%emt 0:01:18]} Qe1+ {[%emt 0:00:32]} 53. Kf4 {
[%emt 0:00:50]} Qf1+ {[%emt 0:00:18]} 54. Ke3 {[%emt 0:00:28]} Qf2+ {[%emt 0:
00:05]} 0-1